[Event "Schack-SM 2022: Veteran-SM +65"]
[Site "Fyrishov, Idrottsgatan 2, Uppsala, Sweden"]
[Date "2022.07.05"]
[Round "4.4"]
[White "Carlsson, Ingvar"]
[Black "Marttala, Thomas"]
[Result "1/2-1/2"]
[TimeControl "90 minutes for 40 moves + 30 minutes for the rest of the game + 30 seconds per move from move one."]
[WhiteFideId "1702670"]
[BlackFideId "1701118"]
[WhiteElo "2030"]
[BlackElo "2164"]

1. e4 {[%clk 01:30:44]} {[%emt 00:00:15]} c5 {[%clk 01:29:28]} {[%emt
00:01:32]} 2. Nc3 {[%clk 01:30:56]} {[%emt 00:00:17]} Nc6 {[%clk 01:29:50]}
{[%emt 00:00:09]} 3. g3 {[%clk 01:30:47]} {[%emt 00:00:38]} g6 {[%clk
01:29:33]} {[%emt 00:00:48]} 4. Bg2 {[%clk 01:30:57]} {[%emt 00:00:19]} Bg7
{[%clk 01:29:57]} {[%emt 00:00:08]} 5. d3 {[%clk 01:31:02]} {[%emt 00:00:23]}
d6 {[%clk 01:27:51]} {[%emt 00:02:37]} 6. Be3 {[%clk 01:29:58]} {[%emt
00:01:34]} Rb8 {[%clk 01:24:42]} {[%emt 00:03:40]} 7. Qd2 {[%clk 01:29:49]}
{[%emt 00:00:38]} b5 {[%clk 01:23:58]} {[%emt 00:01:15]} 8. a3 {[%clk
01:29:29]} {[%emt 00:00:50]} a5 {[%clk 01:24:01]} {[%emt 00:00:28]} 9. Nge2
{[%clk 01:23:49]} {[%emt 00:06:09]} Nd4 {[%clk 01:14:27]} {[%emt 00:10:04]} 10.
O-O {[%clk 00:59:30]} {[%emt 00:24:49]} e6 {[%clk 00:55:24]} {[%emt 00:19:34]}
11. Rac1 {[%clk 00:48:43]} {[%emt 00:11:17]} b4 {[%clk 00:50:17]} {[%emt
00:05:39]} 12. axb4 {[%clk 00:49:00]} {[%emt 00:00:12]} axb4 {[%clk 00:50:34]}
{[%emt 00:00:12]} 13. Nd1 {[%clk 00:48:56]} {[%emt 00:00:33]} Nxe2+ {[%clk
00:38:43]} {[%emt 00:12:22]} 14. Qxe2 {[%clk 00:49:16]} {[%emt 00:00:09]} Ne7
{[%clk 00:38:58]} {[%emt 00:00:16]} 15. Qd2 {[%clk 00:48:31]} {[%emt 00:01:15]}
O-O {[%clk 00:37:26]} {[%emt 00:02:02]} 16. Bh6 {[%clk 00:48:26]} {[%emt
00:00:34]} Nc6 {[%clk 00:33:55]} {[%emt 00:04:01]} 17. Bxg7 {[%clk 00:47:42]}
{[%emt 00:01:14]} Kxg7 {[%clk 00:34:18]} {[%emt 00:00:07]} 18. Ne3 {[%clk
00:47:26]} {[%emt 00:00:46]} Nd4 {[%clk 00:30:11]} {[%emt 00:04:37]} 19. Ra1
{[%clk 00:42:53]} {[%emt 00:05:03]} Bb7 {[%clk 00:25:06]} {[%emt 00:05:36]} 20.
Ra7 {[%clk 00:39:12]} {[%emt 00:04:11]} Nb5 {[%clk 00:24:34]} {[%emt 00:01:02]}
21. Ra4 {[%clk 00:32:49]} {[%emt 00:06:53]} Ra8 {[%clk 00:21:36]} {[%emt
00:03:29]} 22. Rfa1 {[%clk 00:33:05]} {[%emt 00:00:14]} Rxa4 {[%clk 00:20:28]}
{[%emt 00:01:38]} 23. Rxa4 {[%clk 00:33:22]} {[%emt 00:00:13]} h5 {[%clk
00:20:00]} {[%emt 00:00:58]} 24. h4 {[%clk 00:30:11]} {[%emt 00:03:41]} Qe7
{[%clk 00:16:40]} {[%emt 00:03:51]} 25. c3 {[%clk 00:28:04]} {[%emt 00:02:36]}
bxc3 {[%clk 00:15:58]} {[%emt 00:01:12]} 26. bxc3 {[%clk 00:28:24]} {[%emt
00:00:10]} Ra8 {[%clk 00:16:02]} {[%emt 00:00:26]} 27. Rxa8 {[%clk 00:27:43]}
{[%emt 00:01:12]} Bxa8 {[%clk 00:16:19]} {[%emt 00:00:12]} 28. Qb2 {[%clk
00:20:53]} {[%emt 00:07:19]} Bc6 {[%clk 00:09:33]} {[%emt 00:07:16]} 29. d4
{[%clk 00:08:35]} {[%emt 00:12:48]} cxd4 {[%clk 00:06:01]} {[%emt 00:04:02]} 30.
cxd4 {[%clk 00:09:02]} {[%emt 00:00:03]} e5 {[%clk 00:06:12]} {[%emt 00:00:19]}
31. dxe5 {[%clk 00:08:52]} {[%emt 00:00:41]} Qxe5 {[%clk 00:05:46]} {[%emt
00:00:55]} 32. Qxe5+ {[%clk 00:09:13]} {[%emt 00:00:09]} dxe5 {[%clk 00:06:06]}
{[%emt 00:00:10]} 33. f3 {[%clk 00:08:43]} {[%emt 00:01:00]} 1/2-1/2

[Event "Schack-SM 2022: Veteran-SM +65"]
[Site "Fyrishov, Idrottsgatan 2, Uppsala, Sweden"]
[Date "2022.07.04"]
[Round "3.1"]
[White "Soderberg, Per"]
[Black "Bellon Lopez, Juan Manuel"]
[Result "1-0"]
[TimeControl "90 minutes for 40 moves + 30 minutes for the rest of the game + 30 seconds per move from move one."]
[WhiteTitle "CM"]
[BlackTitle "GM"]
[WhiteFideId "1702904"]
[BlackFideId "2200031"]
[WhiteElo "2111"]
[BlackElo "2330"]

1. e4 {[%clk 01:30:56]} {[%emt 00:00:03]} c5 {[%clk 01:30:53]} {[%emt
00:00:08]} 2. Nf3 {[%clk 01:31:21]} {[%emt 00:00:05]} Nc6 {[%clk 01:30:45]}
{[%emt 00:00:38]} 3. Bb5 {[%clk 01:31:31]} {[%emt 00:00:20]} g6 {[%clk
01:30:18]} {[%emt 00:00:57]} 4. O-O {[%clk 01:30:46]} {[%emt 00:01:14]} Bg7
{[%clk 01:30:29]} {[%emt 00:00:19]} 5. c3 {[%clk 01:30:39]} {[%emt 00:00:38]}
Nf6 {[%clk 01:29:51]} {[%emt 00:01:07]} 6. Re1 {[%clk 01:30:51]} {[%emt
00:00:18]} O-O {[%clk 01:29:25]} {[%emt 00:00:56]} 7. d4 {[%clk 01:28:20]}
{[%emt 00:03:01]} d5 {[%clk 01:28:36]} {[%emt 00:01:20]} 8. e5 {[%clk
01:27:36]} {[%emt 00:01:13]} Ne4 {[%clk 01:27:21]} {[%emt 00:01:46]} 9. h3
{[%clk 01:26:15]} {[%emt 00:01:50]} cxd4 {[%clk 01:22:31]} {[%emt 00:05:20]} 10.
cxd4 {[%clk 01:26:34]} {[%emt 00:00:12]} f6 {[%clk 01:22:48]} {[%emt 00:00:13]}
11. Nc3 {[%clk 01:14:21]} {[%emt 00:12:43]} fxe5 {[%clk 00:57:09]} {[%emt
00:26:09]} 12. Nxe4 {[%clk 01:01:33]} {[%emt 00:13:18]} dxe4 {[%clk 00:57:30]}
{[%emt 00:00:10]} 13. Qb3+ {[%clk 00:58:56]} {[%emt 00:03:06]} Kh8 {[%clk
00:55:35]} {[%emt 00:02:25]} 14. Bxc6 {[%clk 00:55:56]} {[%emt 00:03:31]} exf3
{[%clk 00:51:38]} {[%emt 00:04:25]} 15. Bxf3 {[%clk 00:55:39]} {[%emt
00:00:47]} exd4 {[%clk 00:48:08]} {[%emt 00:04:01]} 16. Bg5 {[%clk 00:54:12]}
{[%emt 00:01:56]} Bf6 {[%clk 00:48:06]} {[%emt 00:00:33]} 17. Qb5 {[%clk
00:48:01]} {[%emt 00:06:41]} e6 {[%clk 00:35:47]} {[%emt 00:12:48]} 18. Bxf6+
{[%clk 00:41:07]} {[%emt 00:07:24]} Qxf6 {[%clk 00:36:11]} {[%emt 00:00:06]} 19.
Rad1 {[%clk 00:40:44]} {[%emt 00:00:52]} Rd8 {[%clk 00:33:48]} {[%emt
00:02:53]} 20. Re4 {[%clk 00:22:29]} {[%emt 00:18:46]} a5 {[%clk 00:23:28]}
{[%emt 00:10:51]} 21. Qc4 {[%clk 00:11:32]} {[%emt 00:11:27]} b5 {[%clk
00:13:39]} {[%emt 00:10:18]} 22. Rexd4 {[%clk 00:09:22]} {[%emt 00:02:40]} Rf8
{[%clk 00:04:14]} {[%emt 00:09:55]} 23. Qc7 {[%clk 00:07:41]} {[%emt 00:02:10]}
Ba6 {[%clk 00:00:43]} {[%emt 00:04:03]} 24. Bxa8 {[%clk 00:06:22]} {[%emt
00:01:49]} Qd8 {[%clk 00:27:17]} {[%emt 00:01:01]} 1-0

[Event "Schack-SM 2022: Veteran-SM +65"]
[Site "Fyrishov, Idrottsgatan 2, Uppsala, Sweden"]
[Date "2022.07.04"]
[Round "3.5"]
[White "Jansson, Borje"]
[Black "Westin, Ake"]
[Result "0-1"]
[TimeControl "90 minutes for 40 moves + 30 minutes for the rest of the game + 30 seconds per move from move one."]
[WhiteTitle "FM"]
[WhiteFideId "1700189"]
[BlackFideId "1712888"]
[WhiteElo "2230"]
[BlackElo "1994"]

1. Nf3 {[%clk 01:30:49]} {[%emt 00:00:09]} g6 {[%clk 01:29:38]} {[%emt
00:01:23]} 2. d4 {[%clk 01:30:38]} {[%emt 00:00:40]} Bg7 {[%clk 01:29:45]}
{[%emt 00:00:23]} 3. c4 {[%clk 01:30:12]} {[%emt 00:00:56]} d6 {[%clk
01:28:59]} {[%emt 00:01:17]} 4. Nc3 {[%clk 01:30:25]} {[%emt 00:00:16]} Bg4
{[%clk 01:24:37]} {[%emt 00:04:52]} 5. e3 {[%clk 01:29:51]} {[%emt 00:01:03]}
e6 {[%clk 01:23:13]} {[%emt 00:01:55]} 6. Be2 {[%clk 01:30:05]} {[%emt
00:00:16]} Ne7 {[%clk 01:20:23]} {[%emt 00:03:20]} 7. O-O {[%clk 01:30:01]}
{[%emt 00:00:34]} O-O {[%clk 01:19:00]} {[%emt 00:01:53]} 8. Qc2 {[%clk
01:25:15]} {[%emt 00:05:16]} Nd7 {[%clk 01:07:44]} {[%emt 00:11:46]} 9. Rd1
{[%clk 01:25:05]} {[%emt 00:00:40]} Rb8 {[%clk 01:02:19]} {[%emt 00:05:55]} 10.
b3 {[%clk 01:23:56]} {[%emt 00:01:38]} Nc6 {[%clk 00:59:00]} {[%emt 00:03:50]}
11. Bb2 {[%clk 01:23:01]} {[%emt 00:01:23]} f5 {[%clk 00:49:30]} {[%emt
00:10:02]} 12. a3 {[%clk 01:20:14]} {[%emt 00:03:16]} Qe7 {[%clk 00:45:58]}
{[%emt 00:04:03]} 13. d5 {[%clk 01:19:02]} {[%emt 00:01:41]} Bxf3 {[%clk
00:45:16]} {[%emt 00:01:12]} 14. Bxf3 {[%clk 01:18:48]} {[%emt 00:00:44]} Nce5
{[%clk 00:45:22]} {[%emt 00:00:25]} 15. Be2 {[%clk 01:18:54]} {[%emt 00:00:22]}
c6 {[%clk 00:44:46]} {[%emt 00:01:07]} 16. Rd2 {[%clk 01:13:20]} {[%emt
00:06:03]} Nf7 {[%clk 00:43:24]} {[%emt 00:01:52]} 17. dxe6 {[%clk 01:10:21]}
{[%emt 00:03:29]} Qxe6 {[%clk 00:43:37]} {[%emt 00:00:17]} 18. Rad1 {[%clk
01:10:31]} {[%emt 00:00:19]} Nf6 {[%clk 00:42:25]} {[%emt 00:01:43]} 19. b4
{[%clk 01:02:22]} {[%emt 00:08:39]} Rbd8 {[%clk 00:40:23]} {[%emt 00:02:33]} 20.
b5 {[%clk 00:58:08]} {[%emt 00:04:44]} Ne5 {[%clk 00:36:56]} {[%emt 00:03:57]}
21. Qa4 {[%clk 00:52:44]} {[%emt 00:05:54]} Rf7 {[%clk 00:36:35]} {[%emt
00:00:51]} 22. c5 {[%clk 00:41:35]} {[%emt 00:11:39]} d5 {[%clk 00:34:01]}
{[%emt 00:03:05]} 23. Qxa7 {[%clk 00:40:08]} {[%emt 00:01:57]} Ne4 {[%clk
00:32:04]} {[%emt 00:02:27]} 24. Nxe4 {[%clk 00:38:36]} {[%emt 00:02:02]} fxe4
{[%clk 00:32:23]} {[%emt 00:00:11]} 25. Bxe5 {[%clk 00:34:38]} {[%emt
00:04:26]} Bxe5 {[%clk 00:32:15]} {[%emt 00:00:39]} 26. Qa4 {[%clk 00:23:06]}
{[%emt 00:12:02]} Rdf8 {[%clk 00:27:45]} {[%emt 00:05:00]} 27. f4 {[%clk
00:21:30]} {[%emt 00:02:06]} Bg7 {[%clk 00:23:34]} {[%emt 00:04:42]} 28. bxc6
{[%clk 00:19:53]} {[%emt 00:02:07]} bxc6 {[%clk 00:23:52]} {[%emt 00:00:12]} 29.
Rb1 {[%clk 00:18:59]} {[%emt 00:01:23]} Rc8 {[%clk 00:20:37]} {[%emt 00:03:46]}
30. h3 {[%clk 00:18:31]} {[%emt 00:00:58]} Qe7 {[%clk 00:19:30]} {[%emt
00:01:37]} 31. Bg4 {[%clk 00:17:28]} {[%emt 00:01:31]} Rc7 {[%clk 00:19:18]}
{[%emt 00:00:44]} 32. Rb8+ {[%clk 00:17:37]} {[%emt 00:00:21]} Rf8 {[%clk
00:19:08]} {[%emt 00:00:40]} 33. Rxf8+ {[%clk 00:17:57]} {[%emt 00:00:10]} Bxf8
{[%clk 00:18:19]} {[%emt 00:01:19]} 34. Rc2 {[%clk 00:17:07]} {[%emt 00:01:20]}
h5 {[%clk 00:16:21]} {[%emt 00:02:28]} 35. Be2 {[%clk 00:17:24]} {[%emt
00:00:14]} Bg7 {[%clk 00:14:18]} {[%emt 00:02:33]} 36. Rc1 {[%clk 00:14:46]}
{[%emt 00:03:08]} g5 {[%clk 00:13:09]} {[%emt 00:01:38]} 37. f5 {[%clk
00:09:47]} {[%emt 00:05:30]} Qe5 {[%clk 00:11:41]} {[%emt 00:01:58]} 38. Bxh5
{[%clk 00:08:57]} {[%emt 00:01:20]} Qg3 {[%clk 00:09:06]} {[%emt 00:03:05]} 39.
Qb3 {[%clk 00:30:24]} {[%emt 00:09:03]} 0-1

[Event "Schack-SM 2022: Veteran-SM +65"]
[Site "Fyrishov, Idrottsgatan 2, Uppsala, Sweden"]
[Date "2022.07.02"]
[Round "1.1"]
[White "Larsson, Per-Olov"]
[Black "Bellon Lopez, Juan Manuel"]
[Result "0-1"]
[TimeControl "90 minutes for 40 moves + 30 minutes for the rest of the game + 30 seconds per move from move one."]
[BlackTitle "GM"]
[WhiteFideId "1717774"]
[BlackFideId "2200031"]
[WhiteElo "1955"]
[BlackElo "2330"]

1. e4 {[%clk 01:30:54]} {[%emt 00:00:05]} c5 {[%clk 01:30:50]} {[%emt
00:00:10]} 2. c3 {[%clk 01:31:03]} {[%emt 00:00:21]} b6 {[%clk 01:31:15]}
{[%emt 00:00:06]} 3. d4 {[%clk 01:30:54]} {[%emt 00:00:38]} Bb7 {[%clk
01:31:37]} {[%emt 00:00:08]} 4. Bd3 {[%clk 01:30:34]} {[%emt 00:00:50]} Nf6
{[%clk 01:31:51]} {[%emt 00:00:16]} 5. Nd2 {[%clk 01:30:07]} {[%emt 00:00:57]}
cxd4 {[%clk 01:31:52]} {[%emt 00:00:29]} 6. cxd4 {[%clk 01:30:13]} {[%emt
00:00:23]} Nc6 {[%clk 01:32:04]} {[%emt 00:00:19]} 7. Ngf3 {[%clk 01:30:03]}
{[%emt 00:00:40]} Nb4 {[%clk 01:30:29]} {[%emt 00:02:05]} 8. Bb1 {[%clk
01:24:26]} {[%emt 00:06:08]} Ba6 {[%clk 01:30:53]} {[%emt 00:00:07]} 9. e5
{[%clk 01:18:15]} {[%emt 00:06:40]} Ng8 {[%clk 01:29:45]} {[%emt 00:01:37]} 10.
Ne4 {[%clk 01:13:43]} {[%emt 00:05:03]} e6 {[%clk 01:29:58]} {[%emt 00:00:17]}
11. a3 {[%clk 01:12:40]} {[%emt 00:01:34]} Nd5 {[%clk 01:30:11]} {[%emt
00:00:15]} 12. Bd3 {[%clk 01:12:23]} {[%emt 00:00:48]} Bxd3 {[%clk 01:30:25]}
{[%emt 00:00:16]} 13. Qxd3 {[%clk 01:12:44]} {[%emt 00:00:09]} f5 {[%clk
01:29:31]} {[%emt 00:01:25]} 14. Nc3 {[%clk 01:10:06]} {[%emt 00:03:08]} Nxc3
{[%clk 01:27:44]} {[%emt 00:02:17]} 15. bxc3 {[%clk 01:09:56]} {[%emt
00:00:39]} Qc7 {[%clk 01:28:11]} {[%emt 00:00:04]} 16. O-O {[%clk 01:08:38]}
{[%emt 00:01:47]} Rc8 {[%clk 01:28:31]} {[%emt 00:00:10]} 17. Bb2 {[%clk
01:07:56]} {[%emt 00:01:12]} Qc4 {[%clk 01:27:40]} {[%emt 00:01:22]} 18. Qxc4
{[%clk 01:05:55]} {[%emt 00:02:31]} Rxc4 {[%clk 01:28:04]} {[%emt 00:00:06]} 19.
Nd2 {[%clk 01:04:40]} {[%emt 00:01:45]} Ra4 {[%clk 01:24:11]} {[%emt 00:04:23]}
20. f4 {[%clk 00:55:23]} {[%emt 00:09:48]} Ne7 {[%clk 01:20:56]} {[%emt
00:03:44]} 21. Rf3 {[%clk 00:53:07]} {[%emt 00:02:47]} Nc6 {[%clk 01:15:25]}
{[%emt 00:06:00]} 22. Nb3 {[%clk 00:50:16]} {[%emt 00:03:21]} Be7 {[%clk
01:13:07]} {[%emt 00:02:48]} 23. Rc1 {[%clk 00:46:59]} {[%emt 00:03:47]} O-O
{[%clk 01:00:29]} {[%emt 00:13:08]} 24. c4 {[%clk 00:40:53]} {[%emt 00:06:37]}
Na5 {[%clk 00:48:32]} {[%emt 00:12:26]} 25. Nxa5 {[%clk 00:39:58]} {[%emt
00:01:25]} Rxa5 {[%clk 00:48:58]} {[%emt 00:00:04]} 26. Rfc3 {[%clk 00:36:12]}
{[%emt 00:04:15]} Rc8 {[%clk 00:49:23]} {[%emt 00:00:06]} 27. Kf2 {[%clk
00:35:09]} {[%emt 00:01:32]} Kf7 {[%clk 00:49:46]} {[%emt 00:00:07]} 28. Kf3
{[%clk 00:34:47]} {[%emt 00:00:52]} Ra4 {[%clk 00:48:14]} {[%emt 00:02:01]} 29.
Ke3 {[%clk 00:33:49]} {[%emt 00:01:28]} g5 {[%clk 00:45:57]} {[%emt 00:02:48]}
30. g3 {[%clk 00:33:30]} {[%emt 00:00:49]} Rg8 {[%clk 00:45:43]} {[%emt
00:00:43]} 31. Kf3 {[%clk 00:30:25]} {[%emt 00:03:35]} h5 {[%clk 00:44:55]}
{[%emt 00:01:18]} 32. Rd1 {[%clk 00:24:02]} {[%emt 00:06:54]} h4 {[%clk
00:43:28]} {[%emt 00:01:56]} 33. Kf2 {[%clk 00:12:23]} {[%emt 00:12:09]} h3
{[%clk 00:34:22]} {[%emt 00:09:37]} 34. fxg5 {[%clk 00:10:02]} {[%emt
00:02:51]} Rc8 {[%clk 00:28:58]} {[%emt 00:05:53]} 35. Rdc1 {[%clk 00:08:30]}
{[%emt 00:02:03]} Bxg5 {[%clk 00:29:22]} {[%emt 00:00:06]} 36. R1c2 {[%clk
00:08:47]} {[%emt 00:00:12]} Be7 {[%clk 00:21:56]} {[%emt 00:07:56]} 37. Ke3
{[%clk 00:07:53]} {[%emt 00:01:24]} d6 {[%clk 00:22:16]} {[%emt 00:00:09]} 38.
exd6 {[%clk 00:05:56]} {[%emt 00:02:27]} Bxd6 {[%clk 00:22:40]} {[%emt
00:00:07]} 39. Kd3 {[%clk 00:05:08]} {[%emt 00:01:18]} e5 {[%clk 00:18:07]}
{[%emt 00:05:03]} 40. dxe5 {[%clk 00:01:18]} {[%emt 00:04:20]} Bxe5 {[%clk
00:18:30]} {[%emt 00:00:07]} 41. Rb3 {[%clk 00:01:05]} {[%emt 00:00:43]} Bxb2
{[%clk 00:18:41]} {[%emt 00:00:19]} 42. Rbxb2 {[%clk 00:29:30]} {[%emt
00:02:05]} Rxa3+ {[%clk 00:48:52]} {[%emt 00:00:19]} 43. Kd4 {[%clk 00:27:26]}
{[%emt 00:02:34]} Kf6 {[%clk 00:41:31]} {[%emt 00:07:49]} 44. Rb5 {[%clk
00:20:43]} {[%emt 00:07:16]} Rd8+ {[%clk 00:32:37]} {[%emt 00:09:22]} 45. Rd5
{[%clk 00:20:53]} {[%emt 00:00:22]} Rxd5+ {[%clk 00:32:40]} {[%emt 00:00:27]}
46. Kxd5 {[%clk 00:21:10]} {[%emt 00:00:13]} Ra5+ {[%clk 00:32:04]} {[%emt
00:01:05]} 47. Kd4 {[%clk 00:20:44]} {[%emt 00:00:55]} Ke6 {[%clk 00:31:55]}
{[%emt 00:00:39]} 48. Re2+ {[%clk 00:18:41]} {[%emt 00:02:34]} Kd6 {[%clk
00:31:17]} {[%emt 00:01:08]} 49. Rd2 {[%clk 00:17:03]} {[%emt 00:02:08]} Ra1
{[%clk 00:28:58]} {[%emt 00:02:49]} 50. Ke3+ {[%clk 00:13:30]} {[%emt
00:04:03]} Kc5 {[%clk 00:28:09]} {[%emt 00:01:19]} 51. Rd5+ {[%clk 00:13:03]}
{[%emt 00:00:57]} Kxc4 {[%clk 00:28:33]} {[%emt 00:00:06]} 52. Rxf5 {[%clk
00:13:30]} {[%emt 00:00:04]} b5 {[%clk 00:24:35]} {[%emt 00:04:28]} 53. Kd4+
{[%emt 00:04:13]} 0-1

[Event "Schack-SM 2022: Veteran-SM +65"]
[Site "Fyrishov, Idrottsgatan 2, Uppsala, Sweden"]
[Date "2022.07.02"]
[Round "1.2"]
[White "Jansson, Borje"]
[Black "Ekelund, Kurt"]
[Result "0-1"]
[TimeControl "90 minutes for 40 moves + 30 minutes for the rest of the game + 30 seconds per move from move one."]
[WhiteTitle "FM"]
[WhiteFideId "1700189"]
[BlackFideId "1706667"]
[WhiteElo "2230"]
[BlackElo "1939"]

1. e4 {[%clk 01:30:52]} {[%emt 00:00:06]} c5 {[%clk 01:29:09]} {[%emt
00:01:53]} 2. Nf3 {[%clk 01:30:53]} {[%emt 00:00:28]} Nc6 {[%clk 01:29:04]}
{[%emt 00:00:36]} 3. Bb5 {[%clk 01:30:48]} {[%emt 00:00:35]} e5 {[%clk
01:29:06]} {[%emt 00:00:28]} 4. O-O {[%clk 01:29:56]} {[%emt 00:01:20]} Bd6
{[%clk 01:29:15]} {[%emt 00:00:23]} 5. Re1 {[%clk 01:27:33]} {[%emt 00:02:52]}
Nf6 {[%clk 01:25:56]} {[%emt 00:03:49]} 6. Bf1 {[%clk 01:27:33]} {[%emt
00:00:29]} Be7 {[%clk 01:23:02]} {[%emt 00:03:24]} 7. d3 {[%clk 01:25:46]}
{[%emt 00:02:18]} O-O {[%clk 01:15:13]} {[%emt 00:08:18]} 8. Nbd2 {[%clk
01:24:20]} {[%emt 00:01:55]} d5 {[%clk 01:02:35]} {[%emt 00:13:09]} 9. exd5
{[%clk 01:23:01]} {[%emt 00:01:49]} Qxd5 {[%clk 00:54:48]} {[%emt 00:08:16]} 10.
g3 {[%clk 01:20:28]} {[%emt 00:03:03]} Bg4 {[%clk 00:49:49]} {[%emt 00:05:29]}
11. Bg2 {[%clk 01:20:36]} {[%emt 00:00:22]} Qd7 {[%clk 00:47:19]} {[%emt
00:03:01]} 12. Nc4 {[%clk 01:10:55]} {[%emt 00:10:11]} Bd6 {[%clk 00:26:27]}
{[%emt 00:21:22]} 13. c3 {[%clk 01:04:38]} {[%emt 00:06:46]} Bc7 {[%clk
00:26:04]} {[%emt 00:00:54]} 14. Bg5 {[%clk 01:04:02]} {[%emt 00:01:05]} Nd5
{[%clk 00:25:13]} {[%emt 00:01:22]} 15. Ne3 {[%clk 00:59:14]} {[%emt 00:05:18]}
Nxe3 {[%clk 00:24:47]} {[%emt 00:00:56]} 16. Bxe3 {[%clk 00:59:28]} {[%emt
00:00:15]} b6 {[%clk 00:24:56]} {[%emt 00:00:23]} 17. Qa4 {[%clk 00:56:58]}
{[%emt 00:02:59]} Rad8 {[%clk 00:18:28]} {[%emt 00:06:59]} 18. Nd2 {[%clk
00:49:31]} {[%emt 00:07:54]} Na5 {[%clk 00:18:09]} {[%emt 00:00:53]} 19. Qxd7
{[%clk 00:48:54]} {[%emt 00:01:06]} Bxd7 {[%clk 00:18:20]} {[%emt 00:00:19]} 20.
d4 {[%clk 00:43:38]} {[%emt 00:05:46]} exd4 {[%clk 00:17:39]} {[%emt 00:01:11]}
21. cxd4 {[%clk 00:43:54]} {[%emt 00:00:14]} cxd4 {[%clk 00:17:48]} {[%emt
00:00:23]} 22. Bxd4 {[%clk 00:44:10]} {[%emt 00:00:12]} Bc6 {[%clk 00:16:10]}
{[%emt 00:02:10]} 23. Bc3 {[%clk 00:42:28]} {[%emt 00:02:12]} Bxg2 {[%clk
00:16:00]} {[%emt 00:00:39]} 24. Kxg2 {[%clk 00:42:34]} {[%emt 00:00:22]} Nc6
{[%clk 00:15:07]} {[%emt 00:01:25]} 25. Rac1 {[%clk 00:42:46]} {[%emt
00:00:18]} Be5 {[%clk 00:13:13]} {[%emt 00:02:24]} 26. Nc4 {[%clk 00:40:02]}
{[%emt 00:03:13]} Bxc3 {[%clk 00:13:25]} {[%emt 00:00:18]} 27. Rxc3 {[%clk
00:40:09]} {[%emt 00:00:23]} Nb4 {[%clk 00:11:37]} {[%emt 00:02:18]} 28. Re7
{[%clk 00:39:17]} {[%emt 00:01:22]} Nd5 {[%clk 00:11:58]} {[%emt 00:00:08]} 0-1